fUSD/lending_fUSD_20250306
["ID","MTS","AMOUNT","RATE_DAILY","PERIOD"]
[355540151,1741246240114,-500.0,0.00011557,2]
[355540152,1741246240123,-518.52,0.00011557,2]
[355540153,1741246240132,-544.3,0.00011557,2]
[355540154,1741246240142,-646.48,0.00011557,2]
[355540155,1741246240151,-500.0,0.00011557,2]
[355540156,1741246240161,-500.0,0.00011557,2]
[355540157,1741246240171,-3530.94,0.00011557,2]
[355540158,1741246240180,-500.0,0.00011557,2]
[355540159,1741246240190,-500.0,0.00011557,2]
[355540160,1741246240199,-500.0,0.00011557,2]
[355540161,1741246240208,-500.0,0.00011557,2]
[355540162,1741246240217,-500.0,0.00011557,2]
[355540163,1741246240226,-511.65745417,0.00011557,2]
[355540164,1741246240235,-978.63,0.00011557,2]
[355540165,1741246240244,-747.66,0.00011557,2]
[355540166,1741246240254,-714.85,0.00011557,2]
[355540167,1741246240263,-500.0,0.00011557,2]
[355540168,1741246240272,-638.28,0.00011557,2]
[355540169,1741246240281,-549.83224842,0.00011557,2]
[355540170,1741246240291,-500.0,0.00011557,2]
[355540171,1741246240300,-1582.23,0.00011557,2]
[355540172,1741246240310,-282.8998244,0.00011557,2]
[355540173,1741246240323,-561.82,0.00011557,2]
[355540174,1741246240334,-4363.52,0.00011557,2]
[355540175,1741246240344,-500.0,0.00011557,2]
[355540176,1741246240355,-905.91,0.00011557,2]
[355540177,1741246240365,-1129.79,0.00011557,2]
[355540178,1741246240374,-500.0,0.00011557,2]
[355540179,1741246240385,-695.05,0.00011557,2]
[355540180,1741246240395,-566.30383351,0.00011557,2]
[355540181,1741246240404,-1519.17,0.00011557,2]
[355540182,1741246240415,-2600.59,0.00011557,2]
[355540184,1741246240425,-500.0,0.00011557,2]
[355540186,1741246240435,-254.67,0.00011557,2]
[355540188,1741246240444,-500.0,0.00011557,2]
[355540190,1741246240454,-2852.95,0.00011557,2]
[355540192,1741246240464,-500.0,0.00011557,2]
[355540194,1741246240473,-1095.43,0.00011557,2]
[355540196,1741246240483,-1774.08,0.00011557,2]
[355540198,1741246240492,-500.0,0.00011557,2]
[355540200,1741246240502,-500.0,0.00011557,2]
[355540202,1741246240511,-639.16,0.00011557,2]
[355540204,1741246240521,-583.08,0.00011557,2]
[355540206,1741246240530,-2662.96,0.00011557,2]
[355540208,1741246240540,-939.13,0.00011557,2]
[355540210,1741246240549,-500.0,0.00011557,2]
[355540211,1741246240559,-646.3,0.00011557,2]
[355540212,1741246240569,-949.26,0.00011557,2]
[355540213,1741246240579,-515.48353115,0.00011557,2]
[355540214,1741246240588,-500.0,0.00011557,2]
[355540215,1741246240598,-1316.71,0.00011557,2]
[355540216,1741246240608,-3008.38,0.00011557,2]
[355540217,1741246240618,-606.9,0.00011557,2]
[355540218,1741246240628,-1490.4,0.00011557,2]
[355540219,1741246240638,-500.0,0.00011557,2]
[355540220,1741246240648,-712.81,0.00011557,2]
[355540221,1741246240658,-503.09732235,0.00011557,2]
[355540222,1741246240668,-743.6,0.00011557,2]
[355540223,1741246240678,-500.0,0.00011557,2]
[355540224,1741246240688,-1290.44,0.00011557,2]
[355540225,1741246240697,-500.0,0.00011557,2]
[355540226,1741246240706,-500.0,0.00011557,2]
[355540227,1741246240716,-1282.39,0.00011557,2]
[355540228,1741246240725,-1009.91,0.00011557,2]
[355540229,1741246240734,-964.15,0.00011557,2]
[355540230,1741246240743,-1149.54,0.00011557,2]
[355540231,1741246240752,-1131.31,0.00011557,2]
[355540232,1741246240761,-995.69,0.00011557,2]
[355540233,1741246240771,-1471.76,0.00011557,2]
[355540234,1741246240780,-500.0,0.00011557,2]
[355540235,1741246240788,-500.0,0.00011557,2]
[355540236,1741246240798,-610.7,0.00011557,2]
[355540237,1741246240807,-2881.97,0.00011557,2]
[355540238,1741246240816,-500.0,0.00011557,2]
[355540239,1741246240825,-1452.91,0.00011557,2]
[355540240,1741246240835,-500.0,0.00011557,2]
[355540241,1741246240845,-500.0,0.00011557,2]
[355540242,1741246240855,-516.83,0.00011557,2]
[355540243,1741246240865,-631.29,0.00011557,2]
[355540244,1741246240875,-500.0,0.00011557,2]
[355540245,1741246240885,-517.82,0.00011557,2]
[355540246,1741246240894,-1024.83,0.00011557,2]
[355540247,1741246240904,-3319.6,0.00011557,2]
[355540248,1741246240914,-500.0,0.00011557,2]
[355540249,1741246240924,-1012.51,0.00011557,2]
[355540250,1741246240934,-500.0,0.00011557,2]
[355540251,1741246240944,-6063.35,0.00011557,2]
[355540252,1741246240954,-500.0,0.00011557,2]
[355540253,1741246240963,-500.0,0.00011557,2]
[355540254,1741246240973,-2033.75,0.00011557,2]
[355540255,1741246240983,-500.0,0.00011557,2]
[355540256,1741246240993,-651.28,0.00011557,2]
[355540257,1741246241003,-979.41,0.00011557,2]
[355540258,1741246241012,-500.0,0.00011557,2]
[355540259,1741246241022,-500.0,0.00011557,2]
[355540260,1741246241032,-976.23,0.00011557,2]
[355540261,1741246241042,-510.40568889,0.00011557,2]
[355540262,1741246241052,-633.06,0.00011557,2]
[355540263,1741246241062,-500.0,0.00011557,2]
[355540264,1741246241071,-568.83,0.00011557,2]
[355540265,1741246241081,-522.12437729,0.00011557,2]
[355540266,1741246241090,-808.32,0.00011557,2]
[355540267,1741246241100,-500.0,0.00011557,2]
[355540268,1741246241109,-501.0847856,0.00011557,2]
[355540269,1741246241119,-500.0,0.00011557,2]
[355540270,1741246241128,-551.35,0.00011557,2]
[355540271,1741246241139,-500.0,0.00011557,2]
[355540272,1741246241149,-1053.78,0.00011557,2]
[355540273,1741246241159,-500.0,0.00011557,2]
[355540274,1741246241169,-511.54843874,0.00011557,2]
[355540275,1741246241180,-500.0,0.00011557,2]
[355540276,1741246241190,-500.0,0.00011557,2]
[355540277,1741246241199,-500.0,0.00011557,2]
[355540278,1741246241209,-500.0,0.00011557,2]
[355540279,1741246241218,-973.94,0.00011557,2]
[355540280,1741246241228,-583.31,0.00011557,2]
[355540281,1741246241237,-1337.89,0.00011557,2]
[355540282,1741246241247,-758.8,0.00011557,2]
[355540283,1741246241256,-500.0,0.00011557,2]
[355540284,1741246241266,-500.0,0.00011557,2]
[355540285,1741246241275,-500.0,0.00011557,2]
[355540286,1741246241285,-879.52,0.00011557,2]
[355540287,1741246241294,-500.0,0.00011558,2]
[355540288,1741246241305,-159.79,0.00011576,2]
[355540289,1741246241318,-272.692,0.00011649,2]
[355540290,1741246241327,-150.0,0.00011649,2]
[355540291,1741246241339,-165.759,0.00011649,2]
[355540292,1741246241348,-159.848,0.00011649,2]
[355540293,1741246241359,-169.377,0.00011649,2]
[355540294,1741246241369,-500.0,0.00011658,2]
[355540295,1741246241378,-500.0,0.00011658,2]
[355540296,1741246241388,-182.33111291,0.00011658,2]
[355540297,1741246241397,-500.0,0.00011658,2]
[355540298,1741246241407,-500.0,0.00011658,2]
[355540299,1741246241417,-828.84,0.00011658,2]
[355540300,1741246241427,-237.39161866,0.00011658,3]
[355540301,1741246241436,-143829.92484625,0.00011659,2]
[355540302,1741246241451,-1647.67990866,0.00011659,2]
[355540303,1741246241462,-628.475,0.00011659,2]
[355540304,1741246241650,-500.0,0.00011658,2]
[355540305,1741246241661,-500.0,0.00011658,2]
[355540306,1741246241671,-500.0,0.00011658,2]
[355540307,1741246241681,-7715.08990997,0.00011659,2]
[355540308,1741246241707,-1469.6911387,0.00011659,2]
[355540309,1741246241719,-1095.6062822,0.00011659,2]
[355540310,1741246241869,-500.0,0.00011658,2]
[355540311,1741246241879,-3499.64712997,0.00011659,2]
[355540339,1741246242714,-500.0,0.00011556,2]
[355540341,1741246242724,-54.202,0.00011658,2]
[355540343,1741246242735,-122.32338854,0.00011658,2]
[355540345,1741246242744,-500.0,0.00011658,2]
[355540347,1741246242754,-301.77019964,0.00011659,2]
[355540365,1741246245746,-685.07,0.00011557,2]
[355540366,1741246245756,-212.51999998,0.00011659,2]
[355540367,1741246245767,-745.36525181,0.00011659,2]
[355540368,1741246245812,-449.99139202,0.00011658,2]
[355540369,1741246245822,-848.11202942,0.00011659,2]
[355540370,1741246245834,-9196.5,0.00011659,2]
[355540372,1741246293173,500.0,9.084e-05,2]
[355540373,1741246294786,500.0,0.00010454,2]
[355540374,1741246315162,700.0,0.0001018,2]
[355540375,1741246355517,500.0,9.084e-05,2]
[355540376,1741246357569,500.0,0.00010454,2]
[355540377,1741246402417,534.17,0.00010762,2]
[355540378,1741246431391,1000.0,0.00010758,2]
[355540379,1741246475471,198.14,0.00010749,2]
[355540380,1741246553858,200.0,0.00010691,2]
[355540381,1741246631964,908.24,0.00010622,2]
[355540382,1741246705623,654.28,0.00010642,2]
[355540383,1741246719733,1117.15,8.724e-05,2]
[355540384,1741246751375,164.45,0.00010614,2]
[355540385,1741246751596,164.45,0.0001072,2]
[355540386,1741246751777,164.45,0.00010826,2]
[355540387,1741246764271,1869.21,0.00010527,2]
[355540388,1741246793754,200.0,0.00010526,2]
[355540389,1741246828882,150.0,0.00010508,7]
[355540390,1741247073509,200.0,0.00010246,2]
[355540391,1741247111912,892.12,0.00010457,2]
[355540392,1741247171076,800.98,0.00010463,2]
[355540393,1741247188491,204.97,0.00010463,2]
[355540394,1741247200129,164.6839839,0.00010411,2]
[355540395,1741247215254,754.03,0.00010465,2]
[355540396,1741247232471,250.0,0.00010465,2]
[355540397,1741247279551,943.42,0.00010463,2]
[355540409,1741247431993,-815.1809,0.00010913,2]
[355540410,1741247432002,-164.45,0.00010933,2]
[355540411,1741247432011,-2630.66,0.00010979,2]
[355540412,1741247432021,-1117.15,0.00010988,2]
[355540413,1741247432031,-550.0,0.00011,2]
[355540414,1741247432040,-300.0,0.00011012,2]
[355540415,1741247432049,-2281.10634254,0.00011013,2]
[355540416,1741247432085,-1023.3080068,0.00011013,2]
[355540417,1741247432106,-19782.80441815,0.00011013,2]
[355540418,1741247432116,-1101.55169403,0.00011022,2]
[355540419,1741247432126,-150.0,0.00011022,2]
[355540420,1741247432136,-11526.06351426,0.00011023,2]
[355540421,1741247432145,-51324.07544545,0.00011023,2]
[355540422,1741247432155,-12245.51245,0.00011023,2]
[355540423,1741247432165,-164.45,0.00011039,2]
[355540424,1741247432175,-164.45,0.00011145,2]
[355540425,1741247432185,-164.45,0.00011251,2]
[355540426,1741247432194,-2050.6119,0.00011302,2]
[355540427,1741247432204,-631.5796,0.00011302,2]
[355540428,1741247432216,-1000.0,0.0001133,2]
[355540429,1741247432231,-164.45,0.00011357,2]
[355540430,1741247432240,-1000.0,0.00011365,2]
[355540431,1741247432249,-150.0,0.00011367,2]
[355540432,1741247432258,-150.0,0.00011371,2]
[355540433,1741247432267,-150.0,0.00011371,2]
[355540434,1741247432276,-150.0,0.00011385,2]
[355540435,1741247432285,-150.0,0.00011388,2]
[355540436,1741247432294,-150.0,0.00011392,2]
[355540437,1741247432304,-8653.40032435,0.00011402,2]
[355540438,1741247432313,-150.0,0.00011408,2]
[355540439,1741247432323,-150.0,0.00011414,2]
[355540440,1741247432332,-283.10849837,0.00011419,2]
[355540441,1741247432341,-150.0,0.0001142,2]
[355540442,1741247432349,-150.0,0.00011425,2]
[355540444,1741247432358,-150.0,0.00011429,2]
[355540445,1741247432367,-237.3437329,0.00011434,2]
[355540447,1741247432376,-150.0,0.00011443,2]
[355540449,1741247432385,-192.86655168,0.00011453,2]
[355540451,1741247432394,-301.8332,0.00011457,2]
[355540453,1741247432403,-2112.2205,0.00011457,2]
[355540455,1741247432412,-167.85662379,0.00011458,2]
[355540457,1741247432423,-170.71825195,0.00011458,2]
[355540459,1741247432432,-852.7548,0.00011458,2]
[355540460,1741247432441,-14283.9716,0.00011458,2]
[355540462,1741247432451,-657.1311,0.00011458,2]
[355540464,1741247432460,-164.45,0.00011463,2]
[355540466,1741247432470,-150.0,0.00011467,2]
[355540468,1741247432479,-1000.0,0.00011471,2]
[355540471,1741247432489,-150.0,0.00011472,2]
[355540474,1741247432499,-150.0,0.00011472,2]
[355540476,1741247432509,-1000.0,0.00011475,2]
[355540478,1741247432519,-150.0,0.00011475,2]
[355540480,1741247432529,-150.0,0.0001148,2]
[355540482,1741247432539,-1000.0,0.00011485,2]
[355540484,1741247432548,-150.0,0.00011487,2]
[355540486,1741247432558,-736.08474722,0.00011497,2]
[355540487,1741247432567,-610.41,0.000115,2]
[355540488,1741247432578,-1555.04,0.000115,2]
[355540489,1741247432587,-150.0,0.00011503,2]
[355540490,1741247432596,-154.91361423,0.00011503,2]
[355540491,1741247432606,-150.0,0.00011504,2]
[355540492,1741247432616,-150.0,0.00011505,2]
[355540493,1741247432625,-150.0,0.00011507,2]
[355540494,1741247432634,-150.0,0.00011507,2]
[355540495,1741247432643,-150.0,0.00011513,2]
[355540496,1741247432651,-1000.0,0.00011516,2]
[355540497,1741247432660,-150.0,0.00011517,2]
[355540498,1741247432670,-150.0,0.00011517,2]
[355540499,1741247432680,-150.0,0.00011521,2]
[355540500,1741247432690,-944.56011071,0.00011523,2]
[355540501,1741247432700,-150.80459688,0.00011529,2]
[355540502,1741247432710,-150.0,0.00011531,2]
[355540503,1741247432722,-307.13821007,0.00011534,2]
[355540504,1741247432732,-150.0,0.00011534,2]
[355540505,1741247432742,-150.0,0.00011536,2]
[355540506,1741247432750,-150.0,0.0001154,2]
[355540507,1741247432759,-939.18609,0.0001154,2]
[355540508,1741247432770,-150.0,0.00011548,2]
[355540509,1741247432778,-700.0,0.0001155,2]
[355540510,1741247432787,-150.0,0.00011551,2]
[355540511,1741247432796,-150.0,0.00011553,2]
[355540512,1741247432806,-150.0,0.00011556,2]
[355540513,1741247432815,-157.60893135,0.00011557,2]
[355540514,1741247432825,-500.0,0.00011557,2]
[355540515,1741247432834,-500.0,0.00011557,2]
[355540516,1741247432845,-500.0,0.00011557,2]
[355540517,1741247432854,-500.0,0.00011557,2]
[355540518,1741247432864,-513.99481231,0.00011557,2]
[355540519,1741247432873,-500.0,0.00011557,2]
[355540520,1741247432882,-511.02718804,0.00011557,2]
[355540521,1741247432892,-500.0,0.00011557,2]
[355540522,1741247432902,-296.11059069,0.00011557,2]
[355540523,1741247432912,-500.0,0.00011557,2]
[355540524,1741247432923,-507.56,0.00011557,2]
[355540525,1741247432932,-500.0,0.00011557,2]
[355540526,1741247432942,-500.0,0.00011557,2]
[355540527,1741247432952,-500.0,0.00011557,2]
[355540528,1741247432961,-500.0,0.00011557,2]
[355540529,1741247432970,-229.54536639,0.00011557,2]
[355540530,1741247432980,-440.4384218,0.00011557,2]
[355540531,1741247432990,-500.0,0.00011557,2]
[355540532,1741247432998,-500.0,0.00011557,2]
[355540533,1741247433005,-500.0,0.00011557,2]
[355540534,1741247433015,-515.92920538,0.00011557,2]
[355540535,1741247433024,-500.0,0.00011557,2]
[355540536,1741247433034,-353.76788296,0.00011557,2]
[355540537,1741247433044,-502.86788279,0.00011557,2]
[355540538,1741247433054,-500.0,0.00011557,2]
[355540539,1741247433064,-546.74115608,0.00011557,2]
[355540540,1741247433074,-501.87009548,0.00011557,2]
[355540541,1741247433084,-801.29,0.00011557,2]
[355540542,1741247433094,-4254.75,0.00011557,2]
[355540543,1741247433104,-762.727066,0.00011557,2]
[355540544,1741247433113,-1387.22,0.00011557,2]
[355540545,1741247433123,-1256.59,0.00011557,2]
[355540546,1741247433134,-500.0,0.00011557,2]
[355540547,1741247433144,-500.0,0.00011557,2]
[355540548,1741247433153,-1294.948377,0.00011557,2]
[355540549,1741247433163,-1803.46,0.00011557,2]
[355540550,1741247433173,-500.0,0.00011557,2]
[355540551,1741247433183,-162.866886,0.00011557,2]
[355540552,1741247433193,-1291.36,0.00011557,2]
[355540553,1741247433203,-151.788438,0.00011557,2]
[355540554,1741247433213,-1739.63,0.00011557,2]
[355540555,1741247433223,-500.0,0.00011557,2]
[355540556,1741247433233,-500.0,0.00011557,2]
[355540557,1741247433243,-500.0,0.00011557,2]
[355540558,1741247433252,-2158.39,0.00011557,2]
[355540559,1741247433263,-500.0,0.00011557,2]
[355540560,1741247433273,-500.0,0.00011557,2]
[355540561,1741247433283,-1084.71,0.00011557,2]
[355540562,1741247433292,-507.28991752,0.00011557,2]
[355540563,1741247433302,-500.0,0.00011557,2]
[355540564,1741247433311,-500.0,0.00011557,2]
[355540565,1741247433321,-791.7,0.00011557,2]
[355540566,1741247433332,-755.75,0.00011557,2]
[355540567,1741247433342,-500.0,0.00011557,2]
[355540568,1741247433352,-310.80525378,0.00011557,2]
[355540569,1741247433361,-718.06,0.00011557,2]
[355540570,1741247433371,-500.0,0.00011557,2]
[355540571,1741247433381,-500.0,0.00011557,2]
[355540572,1741247433391,-500.0,0.00011557,2]
[355540573,1741247433401,-1480.39,0.00011557,2]
[355540574,1741247433411,-500.0,0.00011557,2]
[355540575,1741247433420,-500.0,0.00011557,2]
[355540576,1741247433430,-834.29,0.00011557,2]
[355540577,1741247433439,-1270.64,0.00011557,2]
[355540578,1741247433449,-1111.4,0.00011557,2]
[355540579,1741247433458,-500.0,0.00011557,2]
[355540580,1741247433468,-815.03,0.00011557,2]
[355540581,1741247433477,-318.85372848,0.00011557,2]
[355540582,1741247433487,-1437.61,0.00011557,2]
[355540583,1741247433496,-500.0,0.00011557,2]
[355540584,1741247433507,-500.0,0.00011557,2]
[355540585,1741247433516,-500.0,0.00011557,2]
[355540586,1741247433525,-1540.26,0.00011557,2]
[355540587,1741247433534,-930.83,0.00011557,2]
[355540588,1741247433543,-1110.65,0.00011557,2]
[355540589,1741247433552,-500.0,0.00011557,2]
[355540590,1741247433562,-500.0,0.00011557,2]
[355540591,1741247433571,-1267.99,0.00011557,2]
[355540592,1741247433580,-500.0,0.00011557,2]
[355540593,1741247433590,-500.0,0.00011557,2]
[355540594,1741247433599,-3034.18,0.00011557,2]
[355540595,1741247433608,-1314.03,0.00011557,2]
[355540596,1741247433617,-500.0,0.00011557,2]
[355540597,1741247433626,-1316.63,0.00011557,2]
[355540598,1741247433636,-500.0,0.00011557,2]
[355540599,1741247433646,-500.0,0.00011557,2]
[355540600,1741247433655,-211.38778591,0.00011557,2]
[355540601,1741247433664,-747.99,0.00011557,2]
[355540602,1741247433675,-500.0,0.00011557,2]
[355540603,1741247433684,-1086.56,0.00011557,2]
[355540604,1741247433694,-500.0,0.00011557,2]
[355540605,1741247433704,-1160.18,0.00011557,2]
[355540606,1741247433714,-500.0,0.00011557,2]
[355540607,1741247433724,-854.81,0.00011557,2]
[355540608,1741247433738,-500.0,0.00011557,2]
[355540609,1741247433748,-500.0,0.00011557,2]
[355540610,1741247433986,-637.01,0.00011557,2]
[355540611,1741247433996,-500.0,0.00011557,2]
[355540612,1741247434006,-500.0,0.00011557,2]
[355540613,1741247434016,-192.517258,0.00011557,2]
[355540614,1741247434025,-6709.98,0.00011557,2]
[355540615,1741247434035,-500.0,0.00011557,2]
[355540616,1741247434045,-3091.78,0.00011557,2]
[355540617,1741247434054,-277.96910104,0.00011557,2]
[355540618,1741247434063,-1114.55,0.00011557,2]
[355540619,1741247434073,-500.0,0.00011557,2]
[355540620,1741247434083,-574.77,0.00011557,2]
[355540621,1741247434092,-500.0,0.00011557,2]
[355540622,1741247434102,-500.0,0.00011557,2]
[355540623,1741247434111,-500.0,0.00011557,2]
[355540624,1741247434120,-500.0,0.00011557,2]
[355540625,1741247434128,-1059.21,0.00011557,2]
[355540626,1741247434137,-1141.53,0.00011557,2]
[355540627,1741247434146,-500.0,0.00011557,2]
[355540628,1741247434155,-500.0,0.00011557,2]
[355540629,1741247434164,-500.0,0.00011557,2]
[355540630,1741247434175,-601.61743431,0.00011557,2]
[355540631,1741247434184,-500.0,0.00011557,2]
[355540632,1741247434194,-500.0,0.00011557,2]
[355540633,1741247434203,-4669.23,0.00011557,2]
[355540634,1741247434213,-676.6,0.00011557,2]
[355540635,1741247434222,-500.0,0.00011557,2]
[355540636,1741247434232,-500.0,0.00011557,2]
[355540637,1741247434242,-908.37,0.00011557,2]
[355540638,1741247434251,-500.0,0.00011557,2]
[355540639,1741247434261,-500.0,0.00011557,2]
[355540640,1741247434271,-500.0,0.00011557,2]
[355540641,1741247434280,-500.0,0.00011557,2]
[355540642,1741247434290,-500.0,0.00011557,2]
[355540643,1741247434300,-834.03,0.00011557,2]
[355540644,1741247434309,-502.20047687,0.00011557,2]
[355540645,1741247434318,-684.95,0.00011557,2]
[355540646,1741247434328,-906.67,0.00011557,2]
[355540647,1741247434338,-500.0,0.00011557,2]
[355540648,1741247434347,-500.0,0.00011557,2]
[355540649,1741247434357,-403.27032912,0.00011557,2]
[355540650,1741247434367,-500.0,0.00011557,2]
[355540651,1741247434376,-500.0,0.00011557,2]
[355540652,1741247434385,-500.0,0.00011557,2]
[355540653,1741247434395,-500.0,0.00011557,2]
[355540654,1741247434405,-500.0,0.00011557,2]
[355540655,1741247434414,-250.43314691,0.00011557,2]
[355540656,1741247434424,-500.0,0.00011558,2]
[355540657,1741247434433,-500.0,0.00011558,2]
[355540658,1741247434442,-500.0,0.00011558,2]
[355540659,1741247434452,-500.0,0.00011558,2]
[355540660,1741247434461,-502.6129454,0.00011558,2]
[355540661,1741247434470,-500.0,0.00011558,2]
[355540662,1741247434480,-500.0,0.00011558,2]
[355540663,1741247434489,-500.0,0.00011558,2]
[355540664,1741247434498,-500.0,0.00011558,2]
[355540665,1741247434508,-647.3344165,0.00011558,2]
[355540666,1741247434517,-500.0,0.00011558,2]
[355540667,1741247434527,-500.0,0.00011558,2]
[355540668,1741247434536,-500.0,0.00011558,2]
[355540669,1741247434546,-500.0,0.00011558,2]
[355540670,1741247434555,-500.0,0.00011558,2]
[355540671,1741247434564,-505.11474053,0.00011558,2]
[355540672,1741247434574,-500.0,0.00011558,2]
[355540673,1741247434582,-500.0,0.00011558,2]
[355540674,1741247434591,-500.0,0.00011558,2]
[355540675,1741247434600,-500.0,0.00011558,2]
[355540676,1741247434609,-492.00013696,0.00011558,2]
[355540677,1741247434617,-578.47,0.00011558,2]
[355540678,1741247434626,-500.0,0.00011558,2]
[355540679,1741247434635,-500.0,0.00011558,2]
[355540680,1741247434645,-500.0,0.00011558,2]
[355540681,1741247434654,-500.0,0.00011558,2]
[355540682,1741247434663,-500.0,0.00011558,2]
[355540683,1741247434673,-501.55729622,0.00011558,2]
[355540684,1741247434682,-652.89,0.00011558,2]
[355540685,1741247434692,-500.0,0.00011558,2]
[355540686,1741247434700,-500.0,0.00011558,2]
[355540687,1741247434709,-500.0,0.00011558,2]
[355540688,1741247434720,-500.0,0.00011558,2]
[355540689,1741247434732,-501.53363928,0.00011558,2]
[355540690,1741247434742,-500.0,0.00011558,2]
[355540691,1741247434751,-500.0,0.00011558,2]
[355540692,1741247434760,-505.34027584,0.00011558,2]
[355540693,1741247434770,-500.0,0.00011558,2]
[355540694,1741247434779,-500.0,0.00011558,2]
[355540695,1741247434789,-500.0,0.00011558,2]
[355540696,1741247434800,-186.79775661,0.00011558,2]
[355540697,1741247434809,-500.0,0.00011558,2]
[355540698,1741247434819,-164.8866494,0.00011558,2]
[355540699,1741247434833,-335.1133506,0.00011558,2]
[355540700,1741247434843,-500.0,0.00011558,2]
[355540701,1741247434852,-500.0,0.00011558,2]
[355540702,1741247434861,-500.0,0.00011558,2]
[355540703,1741247434871,-500.0,0.00011558,2]
[355540704,1741247434879,-500.0,0.00011558,2]
[355540705,1741247434893,-500.0,0.00011558,2]
[355540706,1741247434902,-500.0,0.00011558,2]
[355540707,1741247434911,-500.0,0.00011558,2]
[355540708,1741247434921,-500.0,0.00011558,2]
[355540709,1741247434930,-500.0,0.00011558,2]
[355540710,1741247434940,-500.0,0.00011558,2]
[355540711,1741247434949,-500.0,0.00011558,2]
[355540712,1741247434960,-500.0,0.00011558,2]
[355540713,1741247434969,-500.0,0.00011558,2]
[355540714,1741247434978,-500.0,0.00011558,2]
[355540715,1741247434988,-500.0,0.00011558,2]
[355540716,1741247434998,-508.4498912,0.00011558,2]
[355540717,1741247435008,-500.0,0.00011558,2]
[355540718,1741247435018,-500.0,0.00011558,2]
[355540719,1741247435028,-500.0,0.00011558,2]
[355540720,1741247435038,-500.0,0.00011558,2]
[355540721,1741247435047,-500.0,0.00011558,2]
[355540722,1741247435057,-500.0,0.00011558,2]
[355540723,1741247435068,-500.0,0.00011558,2]
[355540724,1741247435077,-500.0,0.00011558,2]
[355540725,1741247435087,-500.0,0.00011558,2]
[355540726,1741247435097,-500.0,0.00011558,2]
[355540727,1741247435107,-500.0,0.00011558,2]
[355540728,1741247435116,-500.0,0.00011558,2]
[355540729,1741247435126,-500.0,0.00011558,2]
[355540730,1741247435136,-502.93559593,0.00011558,2]
[355540731,1741247435146,-500.0,0.00011558,2]
[355540732,1741247435156,-500.0,0.00011558,2]
[355540733,1741247435165,-500.0,0.00011558,2]
[355540734,1741247435175,-500.0,0.00011558,2]
[355540735,1741247435185,-500.0,0.00011558,2]
[355540736,1741247435194,-500.0,0.00011558,2]
[355540737,1741247435204,-500.0,0.00011558,2]
[355540738,1741247435213,-332.70697929,0.00011558,2]
[355540739,1741247435223,-626.46,0.00011558,2]
[355540740,1741247435233,-500.0,0.00011558,2]
[355540741,1741247435242,-500.0,0.00011558,2]
[355540742,1741247435252,-501.49221747,0.00011558,2]
[355540743,1741247435261,-500.0,0.00011558,2]
[355540744,1741247435271,-500.0,0.00011558,2]
[355540745,1741247435280,-500.0,0.00011558,2]
[355540746,1741247435290,-511.49448544,0.00011558,2]